bitfinex-derivatives/quotes_BNBF0:USTF0_20250303
["timestamp","ask_amount","ask_price","bid_price","bid_amount"]
[1741026134323,4.898,590.45,590.0,0.28711333]
[1741026134518,4.898,590.45,590.01,0.28711333]
[1741026134723,4.898,590.45,590.02,0.28711333]
[1741026134920,4.898,590.45,590.03,0.28711333]
[1741026135125,4.898,590.45,590.04,0.28711333]
[1741026135324,4.898,590.45,590.0,0.28711333]
[1741026135523,4.898,590.45,590.01,0.28711333]
[1741026135727,4.898,590.45,590.0,0.28711333]
[1741026135923,4.898,590.45,590.01,0.28711333]
[1741026136229,4.898,590.45,590.02,0.28711333]
[1741026136431,4.898,590.45,590.03,0.28711333]
[1741026136630,4.898,590.45,589.9,1.51388479]
[1741026136930,4.898,590.45,589.91,0.28712593]
[1741026138731,4.898,590.45,589.92,0.28712593]
[1741026139031,4.898,590.45,589.93,0.28712593]
[1741026139231,4.898,590.45,589.73,0.28712593]
[1741026139530,4.898,590.45,589.74,0.28712593]
[1741026139731,4.898,590.45,589.73,0.28712593]
[1741026139927,4.898,590.45,589.72,1.51388479]
[1741026139928,4.898,590.45,589.74,0.28712593]
[1741026140132,4.898,590.45,589.73,0.28712593]
[1741026140330,4.898,590.45,589.74,0.28712593]
[1741026140529,4.898,590.45,589.75,0.28712593]
[1741026140725,4.898,590.45,589.76,0.28712593]
[1741026140930,4.898,590.45,589.58,0.28712593]
[1741026141131,4.898,590.45,589.59,0.28712593]
[1741026141331,4.898,590.45,589.57,0.33923028]
[1741026141332,4.898,590.45,589.58,0.28712593]
[1741026141629,4.898,590.45,589.59,0.2872675]
[1741026141834,4.898,590.45,589.6,0.2872675]
[1741026142029,4.898,590.45,589.58,0.2872675]
[1741026142231,4.898,590.45,589.59,0.2872675]
[1741026142432,4.898,590.45,589.58,0.2872675]
[1741026142730,4.898,590.45,589.57,0.33923028]
[1741026142731,4.898,590.45,589.59,0.2872675]
[1741026142934,4.898,590.45,589.6,0.2872675]
[1741026143130,4.898,590.45,589.61,0.2872675]
[1741026143335,4.898,590.45,589.62,0.2872675]
[1741026143533,4.898,590.45,589.63,0.2872675]
[1741026143734,4.898,590.45,589.57,0.33923028]
[1741026143735,4.898,590.45,589.64,0.2872675]
[1741026143931,4.898,590.45,589.65,0.2872675]
[1741026144134,4.898,590.45,589.66,0.2872675]
[1741026144336,4.898,590.45,589.67,0.2872675]
[1741026144635,4.898,590.45,589.68,0.2872675]
[1741026144831,4.898,590.45,589.69,0.2872675]
[1741026145033,4.898,590.45,589.72,1.51388479]
[1741026145234,4.898,590.45,589.73,0.2872675]
[1741026145434,4.898,590.45,589.74,0.2872675]
[1741026145635,4.898,590.45,589.75,0.2872675]
[1741026145834,4.898,590.45,589.76,0.2872675]
[1741026146034,4.898,590.45,589.72,1.51388479]
[1741026146035,4.898,590.45,589.73,0.2872675]
[1741026146232,4.898,590.45,589.74,0.2872675]
[1741026146436,4.898,590.45,589.73,0.2872675]
[1741026146633,4.898,590.45,589.74,0.2872675]
[1741026146837,4.898,590.45,589.73,0.2872675]
[1741026147038,4.898,590.45,589.74,0.2872675]
[1741026147240,4.898,590.45,589.63,0.2872675]
[1741026147440,4.898,590.45,589.65,0.33918426]
[1741026147742,4.898,590.45,589.66,0.28716036]
[1741026148041,4.898,590.45,589.67,0.28716036]
[1741026148242,4.898,590.45,589.68,0.62632736]
[1741026148543,4.898,590.45,589.69,0.62632161]
[1741026148740,4.898,590.45,589.7,0.62631586]
[1741026148937,4.898,590.45,589.71,0.62631011]
[1741026149142,4.898,590.45,589.72,0.28716036]
[1741026149341,4.898,590.45,589.73,0.6262986]
[1741026149541,4.898,590.45,589.74,0.62629285]
[1741026149742,4.898,590.45,589.75,0.6262871]
[1741026149942,4.898,590.45,589.76,0.28716036]
[1741026150242,4.898,590.45,589.77,0.6262756]
[1741026150543,4.898,590.45,589.78,0.62626985]
[1741026150738,4.898,590.45,589.79,0.33910374]
[1741026150939,4.898,590.45,589.91,1.51388479]
[1741026151140,4.898,590.45,589.92,0.2871277]
[1741026151339,4.898,590.45,589.93,0.2871277]
[1741026151543,4.898,590.45,589.94,0.2871277]
[1741026151845,4.898,590.45,589.95,0.2871277]
[1741026152041,4.898,590.45,589.92,0.2871277]
[1741026152241,4.898,590.45,589.93,0.2871277]
[1741026152447,4.898,590.45,589.98,1.51388479]
[1741026152641,4.898,590.45,589.99,0.2871277]
[1741026154244,4.898,590.45,589.84,0.2871277]
[1741026154544,4.898,590.45,589.85,0.2871277]
[1741026154745,4.898,590.45,589.86,0.2871277]
[1741026154944,4.898,590.45,589.83,1.51388479]
[1741026154945,4.898,590.45,589.84,0.2871277]
[1741026155142,4.898,590.45,589.85,0.2871277]
[1741026155340,4.898,590.45,589.84,0.2871277]
[1741026155539,4.898,590.45,589.85,0.2873214]
[1741026155739,4.898,590.45,589.86,0.2873214]
[1741026156043,4.898,590.45,589.87,0.2873214]
[1741026156245,4.898,590.45,589.84,0.2873214]
[1741026156439,4.898,590.45,589.85,0.2873214]
[1741026156643,4.898,590.45,589.84,0.2873214]
[1741026156839,4.898,590.45,589.8,0.28737743]
[1741026157044,4.898,590.45,589.81,0.28737743]
[1741026157246,4.898,590.45,589.82,0.28736903]
[1741026157546,4.898,590.45,589.83,0.28736903]
[1741026157746,4.898,590.45,589.84,0.28736903]
[1741026157947,4.898,590.45,589.85,0.28736903]
[1741026158147,4.898,590.45,589.86,0.28736903]
[1741026158347,4.898,590.45,589.79,0.33910374]
[1741026158348,4.898,590.45,589.8,0.28736903]
[1741026158547,4.898,590.45,589.81,0.28736903]
[1741026158749,4.898,590.45,589.8,0.28736903]
[1741026159047,4.898,590.45,589.81,0.28736903]
[1741026159241,4.898,590.45,589.8,0.28736903]
[1741026159446,4.898,590.45,589.81,0.28736903]
[1741026159649,4.898,590.45,589.8,0.28736903]
[1741026159843,4.898,590.45,589.79,0.33910374]
[1741026160048,4.898,590.45,589.8,0.28739394]
[1741026160248,4.898,590.45,589.79,0.33910374]
[1741026161052,4.898,590.45,589.8,0.28740069]
[1741026162447,4.898,590.45,589.79,0.33910374]
[1741026163552,4.898,590.45,589.8,0.28740754]
[1741026164046,4.898,590.45,589.79,0.33910374]
[1741026165050,4.898,590.45,589.08,1.51388479]
[1741026165250,4.898,590.45,589.1,0.33950093]
[1741026165450,4.898,590.45,589.11,0.2874363]
[1741026165650,4.898,590.45,589.1,0.33950093]
[1741026165651,4.898,590.45,589.12,0.2874363]
[1741026165851,4.898,590.45,589.13,0.2874363]
[1741026166054,4.898,590.45,589.1,0.33950093]
[1741026166055,4.898,590.45,589.14,0.2874363]
[1741026166249,4.898,590.45,589.15,0.2874363]
[1741026166554,4.898,590.45,589.1,0.33950093]
[1741026166754,4.898,590.45,589.11,0.28739995]
[1741026166955,4.898,590.45,589.12,0.28739995]
[1741026167254,4.898,590.45,589.13,0.28739995]
[1741026167454,4.898,590.45,589.14,0.28739995]
[1741026167657,4.898,590.45,589.15,0.28739995]
[1741026167850,4.898,590.45,589.16,0.28739995]
[1741026168157,4.898,590.45,589.1,0.33950093]
[1741026168452,4.898,590.45,589.11,0.28740031]
[1741026168656,4.898,590.45,589.12,0.28740031]
[1741026168851,4.898,590.45,589.1,0.33950093]
[1741026168852,4.898,590.45,589.13,0.28740031]
[1741026169052,4.898,590.45,589.14,0.28740031]
[1741026169255,4.898,590.45,589.15,0.28740031]
[1741026169455,4.898,590.45,589.1,0.33950093]
[1741026169456,4.898,590.45,589.16,0.28740031]
[1741026169654,4.898,590.45,589.17,0.28740031]
[1741026169850,4.898,590.45,589.18,0.28740031]
[1741026170056,4.898,590.45,589.19,0.28740031]
[1741026170255,4.898,590.45,589.21,0.33943755]
[1741026170455,4.898,590.45,589.22,0.28740031]
[1741026170649,4.898,590.45,589.23,0.28740031]
[1741026170854,4.898,590.45,589.24,0.28740031]
[1741026171055,4.898,590.45,589.25,0.28740031]
[1741026171256,4.898,590.45,589.26,0.28740031]
[1741026171455,4.898,590.45,589.27,0.6268033]
[1741026171655,4.898,590.45,589.28,0.28740031]
[1741026171855,4.898,590.45,589.29,0.62679178]
[1741026172051,4.898,590.45,589.3,0.28740031]
[1741026172250,4.898,590.45,589.31,0.62678026]
[1741026172451,4.898,590.45,589.32,0.28740031]
[1741026172655,4.898,590.45,589.33,0.28740031]
[1741026172852,4.898,590.45,589.34,0.28740031]
[1741026173055,4.898,590.45,589.32,0.28740031]
[1741026173256,4.898,590.45,589.33,0.28740031]
[1741026173456,4.898,590.45,589.34,0.28740031]
[1741026173652,4.898,590.45,589.35,0.28740031]
[1741026173853,4.898,590.45,589.36,0.33935116]
[1741026174056,4.898,590.45,589.37,0.28740031]
[1741026174352,4.898,590.45,589.38,0.33933964]
[1741026174557,4.898,590.45,589.39,0.28740031]
[1741026174859,4.898,590.45,589.4,0.33932813]
[1741026175057,4.898,590.45,589.41,0.28740031]
[1741026175258,4.898,590.45,589.42,0.33931661]
[1741026175458,4.898,590.45,589.43,0.28740031]
[1741026175954,4.898,590.45,589.42,0.33931661]
[1741026176159,4.898,590.45,589.43,0.28739572]
[1741026178063,0.33873043,590.44,589.43,0.28739572]
[1741026178262,0.33873043,590.44,589.42,0.33931661]
[1741026179458,1.62673043,590.44,589.42,0.33931661]
[1741026179661,1.62673043,590.44,589.43,0.28749832]
[1741026179863,1.62673043,590.44,589.42,0.33931661]
[1741026180458,1.62673043,590.44,589.43,0.28751594]
[1741026181259,1.62673043,590.44,589.42,0.33931661]
[1741026181464,1.62673043,590.44,589.43,0.28752464]
[1741026181666,5.27573043,590.44,589.43,0.28752464]
[1741026182164,5.27573043,590.44,589.44,0.28752464]
[1741026182364,5.27573043,590.44,589.45,0.28752464]
[1741026182559,5.27573043,590.44,589.46,0.28752464]
[1741026182759,5.27573043,590.44,589.47,0.28752464]
[1741026182966,5.27573043,590.44,588.51,0.28752464]
[1741026183166,5.27573043,590.44,588.53,0.33982974]
[1741026183365,5.27573043,590.44,588.54,0.28752464]
[1741026183565,5.27573043,590.44,588.55,0.28746181]
[1741026183768,5.27573043,590.44,588.56,0.28746181]
[1741026184065,5.27573043,590.44,588.57,0.28746181]
[1741026184269,5.27573043,590.44,588.58,0.28746181]
[1741026184466,5.27573043,590.44,588.59,0.28746181]
[1741026184668,5.27573043,590.44,588.6,0.28746181]
[1741026184869,5.27573043,590.44,588.61,0.28746181]
[1741026185066,5.27573043,590.44,588.62,0.28746181]
[1741026185265,5.27573043,590.44,588.63,0.28746181]
[1741026185463,5.27573043,590.44,588.64,0.28746181]
[1741026185662,5.27573043,590.44,588.65,0.28746181]
[1741026185867,5.27573043,590.44,588.66,0.28746181]
[1741026186070,5.27573043,590.44,588.82,1.51388479]
[1741026186268,5.27573043,590.44,588.83,0.28746181]
[1741026186569,5.27573043,590.44,588.82,1.51388479]
[1741026186570,5.27573043,590.44,588.84,0.28746181]
[1741026186763,5.27573043,590.44,588.86,0.3396393]
[1741026186962,5.27573043,590.44,588.87,0.28746181]
[1741026187160,5.27573043,590.44,588.88,0.28746181]
[1741026187362,0.31165209,590.43,588.9,0.33961623]
[1741026187664,0.31165209,590.43,588.91,0.28746181]
[1741026187867,0.31165209,590.43,588.92,0.28746181]
[1741026188067,0.31165209,590.43,588.93,1.8013466]
[1741026188267,0.31165209,590.43,588.95,0.3395874]
[1741026188469,0.31165209,590.43,588.96,0.28746181]
[1741026188666,2.43400203,590.43,588.98,0.3395701]
[1741026188866,0.31165209,590.42,588.99,0.28746181]
[1741026189266,0.31165209,590.42,589.01,0.3395528]
[1741026189466,0.31165209,590.42,589.02,0.28746181]
[1741026189663,1.77055686,590.41,589.02,0.28746181]
[1741026190267,1.77055686,590.41,589.04,0.33953551]
[1741026190564,1.77055686,590.41,589.05,0.28746181]
[1741026190968,3.8929068,590.41,589.05,0.28746181]
[1741026191465,1.77055686,590.41,589.05,0.28746181]
[1741026191675,1.77055686,590.41,589.07,0.33951822]
[1741026191870,1.77055686,590.41,589.08,0.28746181]
[1741026192170,1.77055686,590.41,589.1,0.33950093]
[1741026192371,1.77055686,590.41,589.11,0.28746181]
[1741026192566,1.77055686,590.41,589.12,0.3394894]
[1741026192767,1.77055686,590.41,589.13,0.28746181]
[1741026192966,1.77055686,590.41,589.14,0.33947788]
[1741026193167,1.77055686,590.41,589.15,0.28746181]
[1741026193364,1.77055686,590.41,589.16,0.33946635]
[1741026193670,2.1093045,590.41,589.17,0.28746181]
[1741026193865,2.1093045,590.41,589.18,0.33945483]
[1741026194070,2.1093045,590.41,589.19,0.28746181]
[1741026194270,2.1093045,590.41,589.2,0.33944331]
[1741026195071,0.31174609,590.4,589.21,0.28766576]
[1741026195270,0.31174609,590.4,589.22,0.33943179]
[1741026195465,0.31174609,590.4,589.23,0.28766576]
[1741026195670,0.31174609,590.4,589.24,0.33942027]
[1741026195971,1.47177425,590.39,589.24,0.33942027]
[1741026196172,0.31177425,590.38,589.24,0.33942027]
[1741026197472,1.16,590.39,589.24,0.33942027]
[1741026197666,0.31188411,590.38,589.24,0.33942027]
[1741026197869,1.37488411,590.38,589.24,0.33942027]
[1741026198071,0.31188411,590.37,589.24,0.33942027]
[1741026198773,0.31188411,590.37,588.23,1.51388479]
[1741026198974,5.79656953,590.37,588.24,0.28782285]
[1741026199183,1.89370325,590.36,588.25,0.28779265]
[1741026199474,0.31187503,590.35,588.26,0.28779265]
[1741026199669,0.31187503,590.35,588.27,0.28779265]
[1741026199875,1.77150323,590.34,588.28,0.28779265]
[1741026200075,0.31187503,590.33,588.29,0.28779265]
[1741026200375,0.31187503,590.33,588.3,0.28779265]
[1741026200575,0.31187503,590.33,588.31,0.28779265]
[1741026200775,0.31187503,590.33,588.32,0.28779265]
[1741026201075,0.31187503,590.33,588.33,0.28779265]
[1741026201271,0.31187503,590.33,587.64,2.57570676]
[1741026201272,0.31187503,590.33,588.34,0.28779265]
[1741026201476,0.31187503,590.33,588.35,0.28779265]
[1741026201477,3.70548719,590.33,588.35,0.28779265]
[1741026201679,0.31187503,590.32,588.36,0.28779265]
[1741026201870,0.31187503,590.32,588.37,0.28779265]
[1741026202075,3.11180379,590.33,588.38,0.28779265]
[1741026202274,0.31184522,590.32,588.39,0.28776342]
[1741026202475,5.28599321,590.32,588.4,0.28776342]
[1741026202671,1.89238105,590.31,588.41,0.28776342]
[1741026202872,0.31184522,590.3,588.42,0.28776342]
[1741026203076,0.31184522,590.3,588.43,0.28776342]
[1741026203378,0.31184522,590.3,588.44,0.28776342]
[1741026203678,5.28524918,590.3,588.45,0.28776342]
[1741026203875,0.31184522,590.29,588.46,0.28776342]
[1741026204078,1.89125648,590.29,588.47,0.28776342]
[1741026204378,0.31184522,590.28,588.48,0.28776342]
[1741026204579,0.31184522,590.27,588.49,0.28776342]
[1741026204878,4.97411031,590.29,588.5,0.28776342]
[1741026204879,0.31184522,590.26,588.5,0.28776342]
[1741026205072,0.31184522,590.25,588.51,0.28776342]
[1741026205273,3.39435995,590.27,587.88,1.51388479]
[1741026205474,0.31187445,590.26,587.89,0.28779224]
[1741026205676,0.31187445,590.26,587.9,0.28779224]
[1741026205874,0.31187445,590.26,587.91,0.28779224]
[1741026206079,0.31187445,590.26,587.92,0.28779224]
[1741026206279,0.31187445,590.26,587.93,0.28779224]
[1741026206480,0.31187445,590.26,587.94,0.28779224]
[1741026206682,0.31187445,590.26,587.95,0.28779224]
[1741026206884,0.31187445,590.26,587.96,0.28779224]
[1741026207079,1.89040166,590.26,587.97,0.28779224]
[1741026207283,0.31187445,590.25,587.98,0.28779224]
[1741026207484,0.31187445,590.24,587.99,0.28779224]
[1741026207685,0.31187445,590.23,588.0,0.28779224]
[1741026207982,0.31187445,590.22,588.01,0.28779224]
[1741026208183,0.31187445,590.22,587.38,2.57570676]
[1741026208184,0.31187445,590.21,588.02,0.28779224]
[1741026208380,0.31187445,590.24,588.03,0.28779224]
[1741026208578,0.31187445,590.24,588.04,0.28779224]
[1741026208776,0.31187445,590.23,588.05,0.28779224]
[1741026208980,0.31187445,590.22,588.06,0.28779224]
[1741026209177,2.39964643,590.23,588.07,0.28779224]
[1741026209380,0.31187445,590.22,588.08,0.28779224]
[1741026209581,0.31187445,590.22,588.09,0.28779224]
[1741026209778,0.31187445,590.22,588.1,0.28779224]
[1741026209978,0.31187445,590.22,587.76,1.51388479]
[1741026209979,5.48213193,590.22,587.76,1.51388479]
[1741026210178,5.79412474,590.21,587.77,0.28790959]
[1741026210379,5.48265469,590.2,587.76,1.51388479]
[1741026210584,5.79467724,590.19,587.77,0.28793877]
[1741026210778,2.39871814,590.18,587.78,0.28793877]
[1741026210981,0.31202255,590.17,587.79,0.28793877]
[1741026211284,0.31202255,590.16,587.8,0.28793877]
[1741026211581,2.71676728,590.15,587.57,1.51388479]
[1741026211785,3.02884061,590.14,587.58,0.28798883]
[1741026211981,3.02884061,590.13,587.59,0.28798883]
[1741026212284,0.31207333,590.12,587.6,0.28798883]
[1741026212480,3.02960167,590.11,587.61,0.28798883]
[1741026212678,3.02960167,590.1,587.62,0.28798883]
[1741026212882,3.02960167,590.09,587.63,0.28798883]
[1741026213078,3.02960167,590.08,587.64,0.28798883]
[1741026213279,0.31207333,590.08,587.64,0.28798883]
[1741026213585,5.79523679,590.08,587.65,0.28798883]
[1741026213785,5.79523679,590.08,587.46,2.57570676]
[1741026213786,2.39832637,590.07,587.66,0.28798883]
[1741026213981,0.31212181,590.06,587.67,0.28803665]
[1741026214191,0.31212181,590.06,587.47,0.28803665]
[1741026214393,0.31212181,590.06,587.48,0.28803665]
[1741026214591,0.31212181,590.06,587.49,0.28803665]
[1741026214791,0.31212181,590.06,587.5,0.28803665]
[1741026215093,0.31212181,590.05,587.51,0.28803665]
[1741026215285,0.31212181,590.04,587.52,0.28803665]
[1741026215490,0.31212181,590.03,587.53,0.28803665]
[1741026215693,5.79463618,590.14,587.47,0.28803665]
[1741026215992,5.79463618,590.13,587.48,0.28803665]
[1741026216192,2.39739393,590.12,587.49,0.28803665]
[1741026216394,0.31212181,590.11,587.5,0.28803665]
[1741026216595,3.0299353,590.1,587.51,0.28803665]
[1741026216795,3.0299353,590.09,587.52,0.28803665]
[1741026216995,3.0299353,590.08,587.53,0.28803665]
[1741026217196,3.0299353,590.07,587.54,0.28803665]
[1741026217398,3.0299353,590.06,587.55,0.28803665]
[1741026217594,3.0299353,590.05,587.56,0.28803665]
[1741026217796,3.0299353,590.04,587.57,0.28803665]
[1741026217996,2.71781349,590.03,587.57,0.28803665]
[1741026218195,3.0299353,590.02,587.58,0.28803665]
[1741026218396,3.0299353,590.01,587.59,0.28803665]
[1741026218597,3.0299353,590.0,587.6,0.28803665]
[1741026218797,3.0299353,590.0,586.11,2.57570676]
[1741026218798,0.31212181,589.99,587.61,0.28803665]
[1741026219000,0.31212181,589.98,587.62,0.28803665]
[1741026219198,0.31212181,589.97,587.63,0.28803665]
[1741026219398,0.31212181,589.96,587.64,0.28803665]
[1741026219598,0.31214268,589.95,587.65,0.28805732]
[1741026219799,0.31214268,589.94,587.66,0.28805732]
[1741026219996,0.31214268,589.93,587.67,0.28805732]
[1741026220200,5.79468166,589.97,587.68,0.28805732]
[1741026220494,2.3974148,589.96,587.69,0.28805732]
[1741026220698,0.31214268,589.95,587.7,0.28805732]
[1741026220898,0.31214268,589.95,587.71,0.28805732]
[1741026221194,0.31214268,589.95,587.72,0.28805732]
[1741026221398,0.31214268,589.95,587.73,0.28805732]
[1741026221601,5.27897761,589.95,587.74,0.28805732]
[1741026221797,1.88171075,589.94,587.75,0.28805732]
[1741026222001,0.31214268,589.93,587.76,0.28805732]
[1741026222196,0.31214268,589.93,587.77,0.28805732]
[1741026222398,0.31214268,589.93,587.04,0.28805732]
[1741026222599,1.77364004,589.92,587.05,0.28805732]
[1741026222799,0.31214268,589.91,587.06,0.28805732]
[1741026222997,0.31214268,589.91,587.07,0.28805732]
[1741026223199,0.31214268,589.91,587.08,0.28805732]
[1741026223397,0.31214268,589.91,587.09,0.28805732]
[1741026223597,1.88057279,589.91,587.1,0.28805732]
[1741026223800,0.31214268,589.9,587.11,0.28805732]
[1741026224097,1.62414268,589.9,587.12,0.28805732]
[1741026224299,0.31214268,589.89,587.13,0.28805732]
[1741026224501,0.3121072,589.88,587.14,0.28802223]
[1741026224697,3.7095834,589.89,587.15,0.28802223]
[1741026224897,0.3121072,589.88,587.16,0.28802223]
[1741026225103,2.5021072,589.88,587.17,0.28802223]
[1741026225402,0.3121072,589.87,587.18,0.28802223]
[1741026225602,2.08562672,589.87,587.19,0.28802223]
[1741026225897,0.31206594,589.86,587.39,1.51388479]
[1741026226202,0.31206594,589.86,587.4,0.2879815]
[1741026226403,0.31206594,589.86,587.41,0.2879815]
[1741026226602,3.1119947,589.86,587.42,0.2879815]
[1741026226796,0.31206594,589.85,587.43,0.2879815]
[1741026227101,3.0300469,589.85,587.44,0.2879815]
[1741026227305,0.31206594,589.84,587.45,0.2879815]
[1741026227603,0.31206594,589.83,587.46,0.2879815]
[1741026227903,0.31206594,589.82,587.47,0.2879815]
[1741026228204,0.31206594,589.81,587.48,0.2879815]
[1741026228405,0.31206594,589.82,587.49,0.2879815]
[1741026228702,1.77338395,589.8,587.5,0.2879815]
[1741026228898,0.31206594,589.79,587.51,0.2879815]
[1741026229102,0.31206594,589.79,587.52,0.2879815]
[1741026229303,0.31206594,589.79,587.53,0.2879815]
[1741026229497,0.31206594,589.79,587.54,0.2879815]
[1741026229703,0.31206594,589.79,587.55,0.2879815]
[1741026229904,0.31206594,589.79,587.56,0.2879815]
[1741026230104,0.31206594,589.79,587.57,0.2879815]
[1741026230304,0.31206594,589.79,587.58,0.2879815]
[1741026230799,0.31206594,589.79,587.59,0.2879815]
[1741026230999,0.31206594,589.79,587.6,0.2879815]
[1741026231204,0.31206594,589.79,587.61,0.2879815]
[1741026231399,3.70954214,589.79,587.62,0.2879815]
[1741026231705,1.77342161,589.78,587.63,0.2879815]
[1741026231906,4.49140257,589.78,587.63,0.2879815]
[1741026232105,4.49140257,589.78,587.64,0.2879815]
[1741026232303,4.49140257,589.78,587.65,0.2879815]
[1741026232504,2.12099695,589.77,587.66,0.2879815]
[1741026232700,4.83897791,589.77,587.67,0.2879815]
[1741026232901,4.83897791,589.77,587.68,0.2879815]
[1741026233101,4.83897791,589.77,587.69,0.2879815]
[1741026233305,0.33912674,589.75,587.71,0.34030389]
[1741026233704,0.31208884,589.74,587.72,0.28800404]
[1741026234006,0.31208884,589.74,587.74,0.34028652]
[1741026234207,0.31208884,589.74,587.75,0.28800404]
[1741026234404,0.31208884,589.74,587.76,0.28800404]
[1741026234602,0.31208884,589.74,587.77,0.28800404]
[1741026234805,1.77311288,589.73,587.79,0.34025757]
[1741026235005,0.31208884,589.72,587.8,0.28800404]
[1741026235206,0.31208884,589.72,587.81,0.28800404]
[1741026235408,0.31208884,589.72,587.82,0.28800404]
[1741026235705,0.31208884,589.72,587.84,0.34022863]
[1741026235909,0.31208884,589.72,587.85,0.28800404]
[1741026236105,0.31208884,589.72,587.86,0.28800404]
[1741026236410,0.31208884,589.72,587.87,0.28800404]
[1741026236610,0.31208884,589.72,587.88,0.28800404]
[1741026236808,0.31208884,589.72,587.89,0.28800404]
[1741026237009,0.31208884,589.72,587.9,0.28800404]
[1741026237205,0.31208884,589.72,587.91,0.28800404]
[1741026237405,0.31208884,589.72,587.93,0.34017655]
[1741026237608,0.31208884,589.72,587.94,0.28800404]
[1741026237810,0.31208884,589.72,587.95,0.28800404]
[1741026238011,0.31208884,589.72,587.96,0.28800404]
[1741026238210,1.77311288,589.73,587.97,0.28795173]
[1741026238211,0.3120358,589.71,587.97,0.28795173]
[1741026238411,0.3120358,589.7,587.99,0.34014183]
[1741026238711,3.87841593,589.73,588.0,0.28795173]
[1741026238911,3.87841593,589.73,588.01,0.28795173]
[1741026239106,3.87841593,589.73,588.02,0.62807621]
[1741026239313,1.77311288,589.73,588.03,0.28795173]
[1741026239512,1.249,589.72,588.05,0.34010713]
[1741026239708,1.249,589.72,588.06,0.28795173]
[1741026239910,1.249,589.72,588.08,0.34008978]
[1741026240211,1.249,589.72,588.09,0.28795173]
[1741026240604,1.77281932,589.71,588.1,0.34007821]
[1741026240809,0.33916125,589.69,588.11,0.28795173]
[1741026241206,0.33916125,589.69,588.12,0.62801838]
[1741026241409,0.33916125,589.69,588.13,0.6280126]
[1741026241712,0.33916125,589.69,588.14,0.62800681]
[1741026241912,0.33916125,589.69,588.15,0.28795173]
[1741026242311,1.60316125,589.69,588.15,0.28795173]
[1741026242612,1.60316125,589.69,588.16,0.28790413]
[1741026242808,1.60316125,589.69,588.17,0.28790413]
[1741026243010,1.60316125,589.69,588.18,0.28790413]
[1741026243214,1.60316125,589.69,588.19,0.28790413]
[1741026243413,1.60316125,589.69,588.2,0.28790413]
[1741026243616,1.60316125,589.69,588.21,0.28790413]
[1741026243814,1.60316125,589.69,588.22,0.28790413]
[1741026244012,1.60316125,589.69,588.26,1.51388479]
[1741026244214,1.60316125,589.69,588.27,0.28786948]
[1741026244515,1.60316125,589.69,588.28,0.33997416]
[1741026244717,1.60316125,589.69,588.29,0.28786948]
[1741026244917,1.60316125,589.69,588.3,0.28786948]
[1741026245110,1.60316125,589.69,588.31,0.28786948]
[1741026245617,1.60316125,589.69,588.28,0.33997416]
[1741026245811,1.60316125,589.69,588.29,0.28776768]
[1741026246015,1.60316125,589.69,588.3,0.62773028]
[1741026246212,1.60316125,589.69,588.31,0.28776768]
[1741026246415,1.60316125,589.69,588.37,1.51388479]
[1741026246613,1.60316125,589.69,588.38,0.28776768]
[1741026246816,1.60316125,589.69,588.39,0.28776768]
[1741026247113,1.60316125,589.69,588.4,0.28776768]
[1741026247321,1.60316125,589.69,588.41,0.28776768]
[1741026247515,1.60316125,589.69,588.38,0.28776768]
[1741026247721,1.60316125,589.69,588.39,0.28776768]
[1741026248022,1.60316125,589.69,588.4,0.28776768]
[1741026248219,1.60316125,589.69,588.41,0.28776768]
[1741026248416,1.60316125,589.69,588.42,0.28776768]
[1741026248620,1.60316125,589.69,588.32,0.28776768]
[1741026248815,1.60316125,589.69,588.31,0.33995682]
[1741026249124,1.60316125,589.69,588.32,0.28792181]
[1741026250417,1.60316125,589.69,588.33,0.28785449]
[1741026250623,1.60316125,589.69,588.34,0.28785449]
[1741026250921,1.60316125,589.69,588.35,0.28785449]
[1741026251122,1.60316125,589.69,588.36,0.28785449]
[1741026251318,1.60316125,589.69,588.37,0.28785449]
[1741026251520,1.60316125,589.69,588.38,0.28785449]
[1741026251820,1.60316125,589.69,588.39,0.28785449]
[1741026252014,1.60316125,589.69,588.4,0.62775931]
[1741026252216,1.60316125,589.69,588.41,0.28785449]
[1741026252422,1.60316125,589.69,588.42,0.28785449]
[1741026252623,1.60316125,589.69,588.43,0.28785449]
[1741026252821,1.60316125,589.69,588.44,0.28785449]
[1741026253021,1.60316125,589.69,588.45,0.28785449]
[1741026253222,1.60316125,589.69,588.46,0.28785449]
[1741026253620,1.60316125,589.69,588.47,0.28785449]
[1741026253823,1.60316125,589.69,588.48,0.28785449]
[1741026254021,1.60316125,589.69,588.49,0.28785449]
[1741026254221,1.60316125,589.69,588.5,0.28785449]